bitfinex/quotes_ETHUSD_20240718
["timestamp","ask_amount","ask_price","bid_price","bid_amount"]
[1721300324484,0.825,3449.1,3448.7,3.44957]
[1721300326171,0.825,3448.9,3448.5,2.89975]
[1721300326482,0.825,3448.9,3448.6,0.55]
[1721300327489,3.72449,3448.9,3448.3,2.89993]
[1721300327663,0.825,3448.7,3448.3,2.89993]
[1721300328065,2.89949,3448.9,3448.3,2.89993]
[1721300328372,3.72449,3448.9,3448.3,2.89993]
[1721300328683,3.72449,3448.9,3448.4,0.16524145]
[1721300328986,3.72449,3448.9,3448.4,3.06513145]
[1721300329155,0.825,3448.9,3448.4,2.89989]
[1721300329359,0.825,3448.9,3448.5,0.16522612]
[1721300329758,2.42,3449.5,3448.5,2.49852612]
[1721300329964,0.825,3449.1,3448.8,2.89955]
[1721300330388,0.825,3449.1,3448.9,0.16478872]
[1721300331798,0.825,3449.1,3448.9,3.06425872]
[1721300337200,0.825,3449.1,3448.9,5.96366872]
[1721300337400,0.825,3449.1,3448.9,3.06419872]
[1721300338591,0.825,3449.1,3448.9,5.96359872]
[1721300338899,0.825,3449.1,3449.0,2.89939]
[1721300339318,0.825,3449.1,3449.0,3.06407617]
[1721300341022,0.825,3449.1,3449.0,0.16468617]
[1721300341529,0.825,3449.1,3448.8,2.89949]
[1721300341736,5.31898,3449.5,3449.0,0.16469829]
[1721300341888,0.825,3449.1,3448.9,0.16471362]
[1721300342089,0.82178,3449.4,3449.1,0.16468296]
[1721300342400,0.825,3449.2,3448.8,2.89949]
[1721300342596,0.825,3448.9,3448.8,2.89949]
[1721300343489,0.825,3448.9,3448.8,3.06421895]
[1721300347617,0.825,3448.9,3448.8,0.16472895]
[1721300348042,0.825,3448.9,3448.6,2.89966]
[1721300348348,5.20495,3448.8,3448.7,0.16472247]
[1721300348510,8.9295,3448.8,3448.7,0.16472247]
[1721300348830,2.3054,3448.5,3447.9,2.90031]
[1721300349038,0.825,3448.0,3447.9,2.90031]
[1721300350302,0.825,3448.0,3447.7,2.90046]
[1721300350724,0.825,3448.0,3447.7,5.80086]
[1721300351307,0.825,3448.0,3447.8,2.90039]
[1721300351509,3.1523,3448.0,3447.5,2.90063]
[1721300351721,0.825,3447.6,3447.5,2.90063]
[1721300352742,0.825,3447.8,3447.6,2.90055]
[1721300353954,0.825,3447.8,3447.7,2.90048]
[1721300354379,2.2628,3448.3,3447.7,2.90048]
[1721300354682,0.825,3447.9,3447.7,2.90048]
[1721300355185,0.825,3447.9,3447.7,2.90042]
[1721300356252,0.825,3447.9,3447.8,2.9004]
[1721300358558,0.825,3447.9,3447.8,3.05982232]
[1721300361067,2.2628,3448.3,3448.0,2.90022]
[1721300361268,0.825,3448.1,3448.0,2.90022]
[1721300366315,0.825,3448.1,3447.8,5.80072]
[1721300366463,0.825,3447.9,3447.8,2.90032]
[1721300371115,3.128,3447.9,3447.3,10.39077]
[1721300371272,0.825,3447.4,3447.3,7.49]
[1721300371601,0.825,3447.4,3447.2,2.90083]
[1721300372473,0.825,3447.4,3447.0,5.80209]
[1721300372673,0.825,3447.2,3447.0,5.80209]
[1721300373675,0.825,3447.2,3447.1,3.06104781]
[1721300376031,0.825,3447.4,3447.1,3.06104781]
[1721300376386,0.825,3447.2,3447.1,3.06104781]
[1721300394294,2.2681,3447.9,3447.3,2.90074]
[1721300394598,0.825,3447.7,3447.4,0.16030549]
[1721300395091,0.825,3447.7,3447.4,3.06100549]
[1721300396277,0.825,3447.7,3447.5,2.90064]
[1721300396487,2.4286,3448.4,3447.9,2.90023]
[1721300396668,0.825,3448.5,3448.0,2.90023]
[1721300396869,0.825,3448.5,3448.0,3.06038282]
[1721300397052,0.2904,3449.8,3448.4,2.89983]
[1721300397053,6.58202487,3449.3,3448.4,2.89983]
[1721300397366,2.466,3449.3,3448.5,3.05815675]
[1721300397564,0.825,3449.2,3448.8,2.89949]
[1721300397948,0.825,3449.2,3448.9,3.05944543]
[1721300399691,0.825,3449.2,3449.0,2.89938]
[1721300399864,0.825,3449.2,3449.1,0.15996478]
[1721300400063,0.825,3449.2,3449.0,2.89938]
[1721300400452,5.3648,3449.7,3449.0,2.89938]
[1721300400651,0.826343,3449.6,3449.0,2.89938]
[1721300400853,0.825,3449.5,3449.2,2.89917]
[1721300402064,0.825,3449.5,3449.3,2.89913]
[1721300402766,0.825,3449.5,3449.1,2.89924]
[1721300402963,5.56530678,3450.0,3448.8,2.89952]
[1721300402964,0.825,3449.3,3448.8,2.89952]
[1721300403151,0.825,3448.9,3448.2,2.4093]
[1721300403352,2.441,3449.4,3448.6,5.79944]
[1721300403353,0.825,3448.7,3448.6,5.79944]
[1721300403551,0.825,3448.9,3448.8,2.89952]
[1721300405483,0.825,3449.1,3448.9,2.89946]
[1721300405852,0.825,3449.1,3448.8,2.89955]
[1721300406077,0.825,3448.9,3448.8,2.89955]
[1721300406655,0.825,3448.9,3448.6,2.8997]
[1721300406857,0.825,3448.7,3448.4,2.89982]
[1721300407091,0.825,3448.7,3448.5,2.89976]
[1721300409195,0.825,3448.7,3448.6,2.89972]
[1721300409894,0.825,3448.9,3448.8,2.89955]
[1721300410105,2.3538,3449.9,3449.2,2.89921]
[1721300410403,0.825,3449.4,3449.2,2.89921]
[1721300412313,5.25244,3449.9,3449.2,2.89921]
[1721300415376,2.3538,3449.9,3449.3,2.89912]
[1721300416637,2.3538,3449.9,3449.4,2.89904]
[1721300416784,0.30294678,3450.0,3449.5,2.89895]
[1721300417112,2.89833,3450.3,3449.6,2.89886]
[1721300417294,2.898,3450.7,3449.9,2.89861]
[1721300417513,0.579582,3450.6,3449.9,2.89861]
[1721300417812,3.78048997,3450.6,3449.9,2.89861]
[1721300418011,3.78048997,3450.6,3450.0,0.15915056]
[1721300418574,2.89814,3450.5,3450.0,0.15915056]
[1721300418879,1.978,3450.4,3450.0,0.15915056]
[1721300419079,0.865663,3450.3,3449.7,2.89872]
[1721300419438,0.92367278,3450.3,3449.8,3.05783119]
[1721300419713,0.92367278,3450.3,3449.8,0.15918119]
[1721300419908,3.32587278,3450.3,3449.8,0.15918119]
[1721300420123,3.32587278,3450.3,3449.7,2.89872]
[1721300420420,3.32587278,3450.3,3449.9,0.15911742]
[1721300420573,3.32587278,3450.3,3449.8,3.05758074]
[1721300420782,3.267863,3450.3,3450.0,0.15885011]
[1721300421024,3.267863,3450.3,3449.9,0.15886542]
[1721300421224,3.267863,3450.3,3450.1,0.15883479]
[1721300421396,3.267863,3450.3,3449.8,2.8987]
[1721300421397,3.267863,3450.3,3450.0,0.15885011]
[1721300421598,3.267863,3450.3,3450.2,0.15881947]
[1721300421804,3.267863,3450.3,3450.1,0.15883479]
[1721300421987,3.267863,3450.3,3450.2,0.15875067]
[1721300422435,3.267863,3450.3,3449.8,2.8987]
[1721300422635,3.267863,3450.3,3450.2,0.15875067]
[1721300422792,3.267863,3450.3,3449.8,2.8987]
[1721300423422,3.267863,3450.3,3449.9,0.15878694]
[1721300423726,3.267863,3450.3,3449.9,3.05740694]
[1721300424123,2.89847,3450.1,3449.9,0.15878694]
[1721300424491,2.89847,3450.1,3449.5,2.89895]
[1721300424815,0.8144073,3450.2,3449.6,0.15882563]
[1721300424995,3.7127873,3450.2,3449.6,0.15882563]
[1721300425193,3.7127873,3450.2,3449.6,3.05769563]
[1721300426126,5.15219,3450.6,3449.9,2.89858]
[1721300426626,5.45503942,3450.6,3450.0,0.15877888]
[1721300426951,2.55694942,3450.6,3450.0,0.15877888]
[1721300427095,2.55694942,3450.6,3450.0,3.05730888]
[1721300427295,3.30024736,3450.6,3450.0,3.05730888]
[1721300427503,6.19830736,3450.6,3450.0,3.05730888]
[1721300429534,2.89814,3450.5,3450.0,0.15877888]
[1721300429701,1.978,3450.4,3450.0,0.15877888]
[1721300429900,1.978,3450.4,3449.8,2.89865]
[1721300430101,0.81763874,3450.3,3449.9,0.1587942]
[1721300430325,2.89855,3450.0,3449.9,0.1587942]
[1721300430638,4.93455978,3450.0,3449.9,0.1587942]
[1721300430796,4.87655,3450.0,3449.4,2.89905]
[1721300430996,2.89839,3450.2,3449.6,2.37]
[1721300431196,2.2855,3450.5,3449.7,2.89879]
[1721300431438,2.8983,3450.3,3449.7,3.05762422]
[1721300432745,2.89838,3450.2,3449.7,0.15884422]
[1721300433057,5.25567,3450.0,3449.7,0.15884422]
[1721300433259,5.25567,3450.0,3449.8,0.15885069]
[1721300433447,3.621997,3449.9,3449.3,5.35107]
[1721300433757,3.621997,3449.9,3449.4,0.15891198]
[1721300434051,0.723367,3449.9,3449.4,0.15891198]
[1721300434215,0.723367,3449.9,3449.4,3.05794198]
[1721300434416,0.824,3449.7,3449.4,3.05794198]
[1721300435116,2.264,3450.3,3449.7,2.89875]
[1721300435353,0.824,3449.9,3449.8,0.15885069]
[1721300435730,0.824,3449.9,3449.7,2.89875]
[1721300436036,0.824,3449.9,3449.8,0.15888219]
[1721300436629,0.824,3449.9,3449.7,2.89875]
[1721300436966,6.35411736,3450.6,3449.8,0.15888219]
[1721300437259,0.824,3450.0,3449.9,2.89861]
[1721300437421,0.824,3450.0,3449.9,3.05747687]
[1721300438019,0.824,3450.5,3450.0,2.89847]
[1721300438259,0.824,3450.5,3450.2,2.89836]
[1721300438752,0.824,3450.5,3450.3,0.15880559]
[1721300439053,0.824,3450.4,3450.2,2.89836]
[1721300439246,0.824,3450.4,3450.3,0.15880559]
[1721300439422,0.824,3450.4,3450.2,2.89836]
[1721300439623,0.824,3450.4,3450.3,0.15880559]
[1721300439845,0.824,3450.4,3450.0,2.89847]
[1721300440059,0.824,3450.1,3450.0,2.89847]
[1721300440794,0.824,3450.1,3449.6,2.89887]
[1721300440933,0.824,3449.9,3449.6,2.89887]
[1721300441376,0.824,3449.9,3449.6,2.89882]
[1721300441543,0.824,3449.9,3449.4,2.89898]
[1721300441748,0.824,3449.9,3449.5,3.55]
[1721300442269,0.824,3449.9,3449.6,2.89883]
[1721300442629,0.824,3449.9,3449.7,2.89879]
[1721300443547,0.824,3449.9,3449.5,3.55]
[1721300444503,0.824,3449.9,3449.6,2.89884]
[1721300444654,0.824,3449.9,3449.6,5.79765]
[1721300445634,0.824,3449.9,3449.7,2.8988]
[1721300446154,3.12605,3450.3,3449.8,3.05745863]
[1721300446155,0.824,3450.1,3449.8,3.05745863]
[1721300446875,5.17566,3450.4,3449.8,3.05745863]
[1721300446876,0.824,3450.3,3449.8,3.05745863]
[1721300447448,0.824,3450.3,3449.8,5.42645863]
[1721300449192,0.824,3450.3,3449.9,2.89862]
[1721300449515,0.824,3450.3,3450.0,0.15872799]
[1721300449673,0.824,3450.3,3449.8,5.26764]
[1721300449882,0.824,3450.1,3449.9,0.15874331]
[1721300451188,0.824,3450.1,3449.7,2.89879]
[1721300451391,0.824,3450.1,3450.0,0.15872799]
[1721300451550,0.824,3450.1,3449.7,2.89879]
[1721300451749,0.824,3450.1,3450.0,0.15872799]
[1721300452021,0.824,3450.1,3449.7,2.89879]
[1721300452150,0.824,3450.1,3450.0,0.15872799]
[1721300452357,0.824,3450.1,3449.7,2.89879]
[1721300452576,0.824,3450.1,3450.0,0.15872799]
[1721300452782,0.824,3450.1,3449.7,2.89879]
[1721300452955,0.824,3450.1,3450.0,0.15872799]
[1721300453151,0.824,3450.1,3449.7,2.89879]
[1721300453753,0.824,3450.1,3449.8,0.15875863]
[1721300454277,0.824,3450.1,3449.9,0.15874331]
[1721300454455,0.824,3450.1,3449.7,2.89879]
[1721300454656,0.824,3450.1,3449.8,0.15875863]
[1721300454976,0.824,3450.1,3449.7,2.89879]
[1721300455302,0.824,3450.1,3449.9,0.15874331]
[1721300455456,0.824,3450.1,3450.0,0.15872316]
[1721300455656,0.824,3450.1,3449.8,2.8987]
[1721300455865,0.824,3450.1,3449.9,0.15873848]
[1721300456602,0.824,3450.3,3449.9,3.05728848]
[1721300456767,0.824,3450.3,3450.0,2.89853]
[1721300457165,0.824,3450.3,3450.1,0.15870784]
[1721300460178,0.824,3450.3,3450.1,3.05716784]
[1721300462399,0.824,3450.3,3450.2,2.89838]
[1721300462708,0.824,3450.7,3450.2,3.90608358]
[1721300462872,0.824,3450.7,3450.2,3.05177195]
[1721300463070,0.824,3450.7,3450.3,2.89822]
[1721300463404,0.824,3450.7,3450.4,3.05151131]
[1721300463606,0.824,3450.9,3450.6,2.3935]
[1721300463809,0.824,3451.1,3450.6,2.3935]
[1721300464032,0.824,3451.1,3450.7,0.15324029]
[1721300464172,0.824,3450.9,3450.7,0.15324029]
[1721300466915,0.824,3450.9,3450.5,2.89812]
[1721300467113,2.89765,3451.1,3450.8,0.15306755]
[1721300467326,2.89798,3450.7,3450.1,0.60516689]
[1721300467487,2.89798,3450.7,3449.8,3.54843378]
[1721300467488,0.824,3450.2,3449.8,0.60516689]
[1721300467691,0.824,3450.2,3449.6,3.80659033]
[1721300467692,0.824,3449.9,3449.6,5.79765]
[1721300467885,0.824,3449.9,3449.6,2.89881]
[1721300468326,2.95630978,3450.3,3449.6,2.89881]
[1721300468499,2.8983,3450.3,3449.7,2.89876]
[1721300469991,2.8983,3450.3,3449.6,2.89883]
[1721300470328,2.8983,3450.3,3449.7,2.8988]
[1721300470633,2.89839,3450.2,3449.6,2.89883]
[1721300470945,2.8983,3450.3,3449.7,2.89879]
[1721300472742,2.89847,3450.1,3449.4,2.3381]
[1721300473030,2.89847,3450.1,3449.5,2.89896]
[1721300475914,2.89847,3450.1,3449.6,0.14334529]
[1721300479118,2.95647978,3450.1,3449.6,0.14334529]
[1721300479664,2.4875,3449.8,3449.6,0.14334529]
[1721300479832,2.8988,3449.7,3449.6,0.14334529]
[1721300480161,2.89889,3449.6,3448.9,2.89946]
[1721300480367,2.89899,3449.5,3449.0,0.14359225]
[1721300480660,2.89899,3449.5,3448.8,2.89955]
[1721300480661,2.95699978,3449.5,3448.8,2.89955]
[1721300480970,2.95699978,3449.5,3448.9,2.89946]
[1721300481121,2.95699978,3449.5,3449.0,0.14359225]
[1721300481464,2.89899,3449.5,3449.0,0.14359225]
[1721300482919,2.95699978,3449.5,3449.0,0.14359225]
[1721300483138,2.89905,3449.4,3449.0,0.14359225]
[1721300483772,2.89899,3449.5,3449.0,0.14359225]
[1721300485873,5.79803,3449.5,3449.0,0.14359225]
[1721300486859,2.89906,3449.4,3449.0,0.14359225]
[1721300487268,2.89927,3449.2,3448.5,5.22228]
[1721300487452,2.89914,3449.3,3448.3,2.89991]
[1721300487453,2.95737978,3449.1,3448.3,2.89991]
[1721300487653,0.05800978,3449.1,3448.2,2.4753]
[1721300487859,2.89964,3448.7,3448.0,2.90022]
[1721300488067,5.39634,3448.7,3448.0,2.90022]
[1721300488375,0.825,3448.3,3448.0,2.90022]
[1721300488933,0.825,3448.3,3448.1,2.90012]
[1721300489146,0.825,3448.5,3448.1,2.90012]
[1721300489764,0.825,3448.3,3448.1,2.90012]
[1721300490332,5.39634,3448.7,3448.1,2.90012]
[1721300491030,5.39634,3448.7,3448.2,0.14423586]
[1721300491457,5.39634,3448.7,3448.0,2.90018]
[1721300491659,5.39634,3448.7,3448.3,0.14422053]
[1721300491857,5.39634,3448.7,3448.0,2.90018]
[1721300492335,5.39634,3448.7,3448.1,0.1442512]
[1721300493869,8.29606,3448.7,3448.1,0.1442512]
[1721300495279,2.89975,3448.6,3448.1,0.1442512]
[1721300497289,2.89989,3448.4,3448.1,0.1442512]
[1721300497442,5.31876,3448.2,3448.1,0.1442512]
[1721300497642,2.90041,3447.8,3447.2,5.19998]
[1721300497977,2.90041,3447.8,3447.3,0.14455326]
[1721300498784,2.90057,3447.6,3447.3,0.14455326]
[1721300498944,5.80088,3447.8,3447.0,5.30805]
[1721300499285,2.90048,3447.7,3447.1,0.14459122]
[1721300499584,2.90058,3447.6,3447.1,0.14459122]
[1721300500137,2.9005,3447.7,3447.1,3.04556122]
[1721300502245,2.4187,3448.2,3447.1,0.14459122]
[1721300502447,2.90019,3448.1,3447.5,2.90064]
[1721300502789,2.4187,3448.2,3447.6,0.14466484]
[1721300502938,5.31882,3448.2,3447.6,0.14466484]
[1721300503143,2.90024,3448.0,3447.3,5.80149]
[1721300503345,2.90024,3448.0,3447.3,2.90074]
[1721300503547,2.90024,3448.0,3447.4,3.04536582]
[1721300504150,2.90051,3447.7,3447.4,0.14468582]
[1721300504365,2.90038,3447.9,3447.1,2.90093]
[1721300504566,2.90038,3447.9,3447.2,0.14471893]
[1721300504956,2.90017,3448.1,3447.2,0.14471893]
[1721300505147,2.90017,3448.1,3447.4,2.90067]
[1721300505344,2.90023,3448.0,3447.5,0.14467291]
[1721300505549,1.948401,3448.1,3447.5,0.14467291]
[1721300505797,1.948401,3448.1,3447.5,3.04530291]
[1721300505953,1.948401,3448.1,3447.7,2.90041]
[1721300506445,1.948401,3448.1,3447.8,0.14462689]
[1721300506856,1.948401,3448.1,3447.8,3.04497689]
[1721300507497,1.948401,3448.1,3447.8,5.94531689]
[1721300509295,1.948401,3448.1,3447.9,2.9003]
[1721300509497,1.948401,3448.1,3447.9,3.04503762]
[1721300516881,1.948401,3448.1,3447.9,0.14473762]
[1721300517239,1.948401,3448.1,3448.0,8.13526]
[1721300517521,0.26805017,3448.1,3448.0,11.58549]
[1721300517822,0.26805017,3448.1,3448.0,12.73816]
[1721300517994,0.26805017,3448.1,3448.0,15.73816]
[1721300518385,0.26805017,3448.1,3448.0,14.73004497]
[1721300518611,0.26805017,3448.1,3448.0,15.73817966]
[1721300518807,0.26805017,3448.1,3448.0,14.73004497]
[1721300519018,0.26805017,3448.1,3448.0,15.73818162]
[1721300519323,0.26805017,3448.1,3448.0,15.73819717]
[1721300519679,0.26805017,3448.1,3448.0,18.63842717]
[1721300519886,0.26805017,3448.1,3448.0,19.24359406]
[1721300520514,0.26805017,3448.1,3448.0,20.15062921]
[1721300521035,1.7e-07,3448.1,3448.0,26.17221147]
[1721300521186,5.17934,3450.3,3449.6,2.89886]
[1721300521528,0.715834,3450.2,3449.7,0.14428468]
[1721300521883,0.715834,3450.2,3449.7,3.04308468]
[1721300523325,3.614224,3450.2,3449.7,0.14428468]
[1721300523628,3.614224,3450.2,3449.5,2.8989]
[1721300523790,0.90958882,3450.1,3449.8,0.14426936]
[1721300523990,0.90958882,3450.1,3449.5,2.8989]
[1721300524291,0.90958882,3450.1,3449.9,0.14425404]
[1721300524490,0.90958882,3450.1,3449.3,2.89913]
[1721300524491,5.8450786,3450.1,3449.3,2.89913]
[1721300524691,3.81304368,3450.0,3449.3,2.89913]
[1721300524916,2.89863,3449.9,3449.1,2.8993]
[1721300525157,2.38190978,3449.8,3448.9,2.89944]
[1721300525363,2.89902,3449.5,3448.7,2.89959]
[1721300525517,2.4017,3449.3,3448.7,2.89959]
[1721300525823,0.05800978,3449.2,3448.7,2.89959]
[1721300526619,2.4017,3449.3,3448.7,2.89959]
[1721300527152,2.89922,3449.2,3448.6,2.8997]
[1721300527660,2.89922,3449.2,3448.3,2.89993]
[1721300528268,2.89922,3449.2,3448.5,2.89976]
[1721300529231,2.89922,3449.2,3448.6,2.89971]
[1721300532852,0.05800978,3449.1,3448.6,2.89971]
[1721300533064,0.96580696,3449.1,3448.6,2.89971]
[1721300533268,0.90779718,3449.1,3448.6,2.89971]
[1721300533472,2.89922,3449.2,3448.6,2.89971]
[1721300534555,2.89922,3449.2,3448.4,2.89988]
[1721300534735,2.89922,3449.2,3448.5,2.89977]
[1721300534948,0.05800978,3449.1,3448.5,2.89977]
[1721300535154,2.4255,3448.9,3448.0,2.90015]
[1721300535359,0.05800978,3448.8,3448.1,2.90009]
[1721300536059,0.05800978,3448.8,3448.2,3.04424159]
[1721300536284,2.95756978,3448.8,3448.2,3.04424159]
[1721300536462,0.05800978,3448.7,3448.2,3.04424159]
[1721300536777,3.78172608,3448.7,3448.2,0.14421159]
[1721300537076,3.83973586,3448.7,3448.2,0.14421159]
[1721300537246,3.83973586,3448.7,3448.0,2.90015]
[1721300537579,2.89973,3448.6,3448.0,2.90015]
[1721300537758,2.95773978,3448.6,3448.1,0.13950925]
[1721300540582,2.3129,3448.5,3448.1,0.13950925]
[1721300542884,8.17808,3448.8,3448.1,0.13950925]
[1721300543195,2.89925,3449.2,3448.1,0.13950925]
[1721300543196,2.3789,3449.1,3448.1,0.13950925]
[1721300543401,4.87787,3449.7,3448.4,2.3205]
[1721300543402,2.89907,3449.4,3448.4,2.3205]
[1721300543575,5.27792,3449.5,3448.7,2.89964]
[1721300543778,8.17696,3449.5,3448.7,2.89964]
[1721300544009,8.17696,3449.5,3448.8,0.13951343]
[1721300544212,2.3789,3449.5,3448.8,3.03901343]
[1721300544511,5.27787,3449.5,3448.8,3.03901343]
[1721300544663,5.27787,3449.5,3448.9,2.89945]
[1721300544991,2.89896,3449.6,3449.0,0.13948277]
[1721300546201,2.89897,3449.5,3449.0,0.13948277]
[1721300546376,3.188866,3449.5,3448.8,2.8995]
[1721300546712,3.188866,3449.5,3449.1,0.13946744]
[1721300546889,3.188866,3449.5,3448.8,5.79899]
[1721300547069,3.188866,3449.5,3449.2,0.13945212]
[1721300547275,0.6087826,3449.4,3448.8,2.89949]
[1721300547786,0.6087826,3449.4,3448.9,0.1394981]
[1721300548269,2.89919,3449.3,3448.9,0.1394981]
[1721300548603,2.89919,3449.3,3448.6,2.89969]
[1721300548604,2.89923,3449.2,3448.6,2.89969]
[1721300548802,2.89923,3449.2,3449.0,0.13948277]
[1721300548965,3.80029886,3449.2,3448.6,2.89969]
[1721300549161,2.89923,3449.2,3449.1,0.13946744]
[1721300549503,2.89923,3449.2,3448.6,2.89969]
[1721300549709,2.89923,3449.2,3449.1,0.13946744]
[1721300549928,2.89923,3449.2,3448.6,2.89969]
[1721300550434,2.89923,3449.2,3448.7,0.13940272]
[1721300552103,2.89923,3449.2,3448.7,3.03904272]
[1721300552311,2.89908,3449.4,3448.7,3.03904272]
[1721300552493,2.89881,3449.7,3449.0,2.89931]
[1721300552693,1.21254384,3450.2,3449.2,2.89917]
[1721300552694,2.8984,3450.2,3449.2,2.89917]
[1721300553006,2.8984,3450.2,3449.4,2.899]
[1721300553007,2.89846,3450.1,3449.4,2.899]
[1721300553505,2.8984,3450.2,3449.5,0.13916862]
[1721300553705,5.23654,3450.4,3449.6,0.05797523]
[1721300553912,2.89829,3450.3,3449.6,2.89887]
[1721300554112,2.89829,3450.3,3449.7,0.13913798]
[1721300554693,3.421949,3450.3,3449.7,0.13913798]
[1721300555101,2.89841,3450.2,3449.7,0.13913798]
[1721300555311,0.523659,3450.3,3449.7,0.13913798]
[1721300555501,3.421969,3450.3,3449.7,0.13913798]
[1721300555833,3.421969,3450.3,3449.8,0.13912266]
[1721300556032,3.421969,3450.3,3449.6,2.89887]
[1721300556338,3.421969,3450.3,3449.9,0.13910734]
[1721300556513,3.421969,3450.3,3449.6,2.89887]
[1721300556702,2.89831,3450.3,3449.6,2.89887]
[1721300556899,2.89831,3450.3,3449.7,3.03792798]
[1721300557136,2.89816,3450.5,3449.7,3.03792798]
[1721300557137,2.89804,3450.6,3449.8,2.89864]
[1721300557305,2.89804,3450.6,3449.8,2.95661334]
[1721300557495,2.89804,3450.6,3449.9,0.13898619]
[1721300557733,2.89804,3450.6,3449.9,3.03756619]
[1721300557941,2.89813,3450.5,3449.9,3.03756619]
[1721300559634,0.579593,3450.6,3449.9,3.03756619]
[1721300559935,3.477643,3450.6,3449.9,5.93614619]
[1721300560112,3.477643,3450.6,3449.9,3.03756619]
[1721300560314,3.477643,3450.6,3450.0,2.89853]
[1721300560527,2.89813,3450.5,3449.9,0.13898619]
[1721300560835,3.5356933,3450.5,3450.0,0.13874797]
[1721300562139,2.89802,3450.7,3450.0,3.03728797]
[1721300562539,2.89804,3450.6,3450.0,3.03728797]
[1721300563523,2.89791,3450.8,3450.1,2.89841]
[1721300563814,2.89791,3450.8,3450.2,0.13861086]
[1721300564349,2.89791,3450.8,3450.2,3.03694086]
[1721300564848,4.8768,3450.9,3450.2,3.03694086]
[1721300565053,2.8978,3450.9,3450.2,3.03694086]
[1721300567338,2.8978,3450.9,3450.3,3.03687555]
[1721300567534,4.9286498,3451.3,3450.4,2.4026]
[1721300567721,4.9286498,3451.3,3450.7,2.89795]
[1721300567922,5.94689378,3451.3,3450.7,2.89795]
[1721300568120,5.94689378,3451.3,3450.8,0.13851898]
[1721300568557,5.94689378,3451.3,3450.9,0.13850367]
[1721300568762,5.94689378,3451.3,3450.6,2.89804]
[1721300568938,4.9286498,3451.3,3450.7,0.13853429]
[1721300569137,7.8261798,3451.3,3450.7,0.13853429]
[1721300569460,2.89771,3451.0,3450.7,0.13853429]
[1721300569663,2.89771,3451.0,3450.4,5.30079]
[1721300570165,5.45387978,3450.9,3450.1,2.89843]
[1721300570735,5.45387978,3450.9,3450.2,0.1385164]
[1721300570933,2.89789,3450.8,3450.2,0.1385164]
[1721300571145,2.95589978,3450.8,3450.2,0.1385164]
[1721300571356,2.95601978,3450.7,3450.2,0.1385164]
[1721300571558,2.95601978,3450.7,3450.0,2.89854]
[1721300571559,2.89805,3450.6,3450.0,2.89854]
[1721300571723,2.89805,3450.6,3450.1,0.13853171]
[1721300581644,2.89834,3450.3,3450.1,0.13853171]
[1721300581847,2.89834,3450.3,3449.6,8.25863]
[1721300582156,2.89834,3450.3,3449.7,2.8988]
[1721300582356,2.89834,3450.3,3449.8,0.13852922]
[1721300582678,2.89834,3450.3,3449.7,2.8988]
[1721300582865,2.89834,3450.3,3449.9,0.1385139]
[1721300583076,2.89834,3450.3,3449.7,2.8988]
[1721300583542,2.89834,3450.3,3449.8,0.13858978]
[1721300583771,2.89834,3450.3,3449.7,5.79754]
[1721300584006,2.89834,3450.3,3449.8,0.13858978]
[1721300584217,2.89834,3450.3,3449.8,2.89871]
[1721300584372,5.79634,3450.5,3449.9,0.13857446]
[1721300584779,2.89823,3450.4,3449.9,0.13857446]
[1721300585205,2.89823,3450.4,3449.9,3.03719446]
[1721300586623,2.89855,3450.0,3449.9,0.13857446]
[1721300586775,2.89855,3450.0,3449.3,7.49]
[1721300586776,2.89866,3449.9,3449.3,7.49]
[1721300586978,2.89878,3449.8,3449.4,0.13861231]
[1721300587176,2.89895,3449.6,3448.8,2.89949]
[1721300587377,0.05800978,3449.5,3448.9,0.13871558]
[1721300587631,2.95697978,3449.5,3448.9,0.13871558]
[1721300587834,2.89906,3449.4,3448.9,0.13871558]
[1721300587980,2.89906,3449.4,3448.7,7.49]
[1721300588303,2.89919,3449.3,3448.8,0.13873091]
[1721300589089,2.95719978,3449.3,3448.6,5.28496]
[1721300589427,0.05800978,3449.2,3448.7,0.13894977]
[1721300589980,2.95729978,3449.2,3448.7,0.13894977]
[1721300590281,2.89929,3449.2,3448.5,2.8998]
[1721300590781,2.89929,3449.2,3448.6,0.1389651]
[1721300591402,2.89929,3449.2,3448.6,3.0386651]
[1721300591792,2.89906,3449.4,3448.6,3.0386651]
[1721300592008,5.30375,3449.8,3448.9,2.4458]
[1721300592212,5.30375,3449.8,3449.0,2.8993]
[1721300592213,2.89875,3449.8,3449.0,2.8993]
[1721300592396,2.89875,3449.8,3449.1,2.8993]
[1721300592596,2.89875,3449.8,3449.1,3.03842589]
[1721300593211,2.89855,3450.0,3449.1,3.03842589]
[1721300593212,2.89858,3450.0,3449.1,3.03842589]
[1721300593408,3.655878,3450.0,3449.1,3.03842589]
[1721300593817,2.89881,3449.7,3449.1,3.03842589]
[1721300594639,3.655878,3450.0,3449.1,3.03842589]
[1721300594640,2.89869,3449.9,3449.1,3.03842589]
[1721300594814,2.89869,3449.9,3449.1,3.03835589]
[1721300595344,2.89877,3449.8,3449.2,2.89921]
[1721300595499,2.89877,3449.8,3449.1,0.13912589]
[1721300595500,3.676416,3449.8,3449.1,0.13912589]
[1721300595699,3.676416,3449.8,3449.3,0.13906615]
[1721300595921,3.676416,3449.8,3449.2,0.13908148]
[1721300596123,3.676416,3449.8,3449.4,0.13905083]
[1721300596338,3.676416,3449.8,3449.3,0.13906615]
[1721300596538,3.676416,3449.8,3449.5,0.13903551]
[1721300596723,2.8988,3449.7,3449.4,0.13905083]
[1721300596937,3.61432338,3449.7,3449.6,0.13902018]
[1721300597105,2.89888,3449.6,3449.5,0.13899673]
[1721300597299,2.89901,3449.5,3448.8,2.89951]